[Event "Turkish Club Cup 2019"]
[Site "Konya"]
[Date "2019.07.18"]
[Round "5"]
[White "Uysal, Ugur"]
[Black "Uzgur, Arda"]
[Result "0-1"]
[ECO "E68"]
[WhiteElo "1689"]
[BlackElo "1480"]
[Annotator "NA"]
[PlyCount "102"]
[EventDate "2019.07.16"]
[EventType "team-tourn"]
[EventCountry "TUR"]
[SourceTitle "playchess.com"]
[Source "ChessBase"]
[SourceQuality "1"]
[TimeControl "5400+30"]

1. Nf3 {[%emt 0:00:30]} Nf6 {[%emt 0:00:30]} 2. d4 {[%emt 0:00:00]} g6 {[%emt 0:00:30]} 3. c4 {[%emt 0:00:00]} Bg7 {[%emt 0:00:30]} 4. g3 {[%emt 0:00:00]} O-O {[%emt 0:00:00]} 5. Bg2 {[%emt 0:00:00]} d6 {[%emt 0:00:00]} 6. O-O {[%emt 0:00:30]} Nbd7 {[%emt 0:03:30]} 7. Nc3 {[%emt 0:00:30]} c6 {[%emt 0:03:30]} 8. e4 {[%emt 0:00:30]} Qc7 {[%emt 0:04:30]} 9. Re1 {[%emt 0:04:30]} e5 {[%emt 0:01:30]} 10. b3 {[%emt 0:02:30]} Rd8 {[%emt 0:06:30]} 11. Bb2 {[%emt 0:02:30]} Nf8 {[%emt 0:08:30]} 12. h3 {[%emt 0:01:30]} Ne6 {[%emt 0:04:30]} 13. d5 {[%emt 0:00:00]} Nf8 {[%emt 0:04:30]} 14. Ba3 {[%emt 0:04:00]} Ne8 {[%emt 0:05:30]} 15. Qd2 {[%emt 0:05:30]} c5 {[%emt 0:04:30]} 16. Bb2 {[%emt 0:00:30]} f5 {[%emt 0:01:30]} 17. Qe2 {[%emt 0:03:30]} Nf6 {[%emt 0:02:30]} 18. Nd2 {[%emt 0:00:00]} g5 {[%emt 0:04:30]} 19. exf5 {[%emt 0:01:00]} Bxf5 {[%emt 0:00:30]} 20. Nde4 {[%emt 0:00:00]} h6 {[%emt 0:02:30]} 21. Nxf6+ {[%emt 0:00:00]} Bxf6 {[%emt 0:00:30]} 22. Ne4 {[%emt 0:00:00]} Bg7 {[%emt 0:00:30]} 23. Qf3 {[%emt 0:02:00]} Qf7 {[%emt 0:02:30]} 24. Bc3 {[%emt 0:04:30]} Bxe4 {[%emt 0:04:30]} 25. Qxe4 {[%emt 0:00:30]} Nd7 {[%emt 0:00:00]} 26. Rac1 {[%emt 0:05:30]} a6 {[%emt 0:03:00]} 27. Qe2 {[%emt 0:02:30]} b5 {[%emt 0:07:30]} 28. Ba5 {[%emt 0:01:30]} Rf8 {[%emt 0:00:30]} 29. a3 {[%emt 0:01:30]} e4 {[%emt 0:05:36]} 30. Bxe4 {[%emt 0:11:30]} Bd4 {[%emt 0:03:20]} 31. Rf1 {[%emt 0:00:30]} Rae8 {[%emt 0:01:09]} 32. Qc2 {[%emt 0:07:30]} Ne5 {[%emt 0:04:24]} 33. Kg2 {[%emt 0:05:30]} bxc4 {[%emt 0:03:26]} 34. bxc4 {[%emt 0:06:30]} Nxc4 {[%emt 0:01:22]} 35. Qxc4 {[%emt 0:01:30]} Rxe4 {[%emt 0:00:07]} 36. f3 {[%emt 0:01:30]} Re5 {[%emt 0:01:32]} 37. Rcd1 {[%emt 0:00:30]} Rfe8 {[%emt 0:01:21]} 38. Rd2 {[%emt 0:00:30]} Qe7 {[%emt 0:02:08]} 39. Qxa6 {[%emt 0:01:30]} Re2+ {[%emt 0:01:07]} 40. Rxe2 {[%emt 0:00:30]} Qxe2+ {[%emt 0:00:31]} 41. Qxe2 {[%emt 0:00:30]} Rxe2+ {[%emt 0:00:30]} 42. Kh1 {[%emt 0:00:00]} Re5 {[%emt 0:00:03]} 43. f4 {[%emt 0:07:00]} Rxd5 {[%emt 0:01:01]} 44. fxg5 {[%emt 0:04:44]} Rxg5 {[%emt 0:01:24]} 45. Kg2 {[%emt 0:00:43]} Re5 {[%emt 0:00:41]} 46. Bc7 {[%emt 0:06:44]} Re2+ {[%emt 0:01:25]} 47. Kf3 {[%emt 0:00:30]} Re3+ {[%emt 0:00:00]} 48. Kf4 {[%emt 0:01:32]} Re7 {[%emt 0:00:00]} 49. Rd1 {[%emt 0:00:53]} Rxc7 {[%emt 0:00:04]} 50. Ke4 {[%emt 0:00:30]} Be5 {[%emt 0:00:30]} 51. Kd5 {[%emt 0:00:00]} c4 {[%emt 0:01:15]} 0-1

[Event "Turkish Club Cup 2019"]
[Site "Konya"]
[Date "2019.07.18"]
[Round "5"]
[White "Simsek, Meltem"]
[Black "Temel, Burcu Melis"]
[Result "1/2-1/2"]
[ECO "A37"]
[WhiteElo "1684"]
[BlackElo "1790"]
[Annotator "NA"]
[PlyCount "84"]
[EventDate "2019.07.16"]
[EventType "team-tourn"]
[EventCountry "TUR"]
[SourceTitle "playchess.com"]
[Source "ChessBase"]
[SourceQuality "1"]
[TimeControl "5400+30"]

1. Nf3 {[%emt 0:00:30]} c5 {[%emt 0:00:30]} 2. c4 {[%emt 0:00:00]} Nc6 {[%emt 0:00:30]} 3. g3 {[%emt 0:00:00]} g6 {[%emt 0:00:00]} 4. Bg2 {[%emt 0:00:30]} Bg7 {[%emt 0:00:00]} 5. O-O {[%emt 0:00:30]} e5 {[%emt 0:00:30]} 6. d3 {[%emt 0:00:00]} Nge7 {[%emt 0:00:30]} 7. Nc3 {[%emt 0:00:00]} O-O {[%emt 0:00:30]} 8. Rb1 {[%emt 0:00:30]} d6 {[%emt 0:00:30]} 9. a3 {[%emt 0:00:00]} a5 {[%emt 0:00:30]} 10. Bd2 {[%emt 0:00:00]} Rb8 {[%emt 0:00:30]} 11. e3 {[%emt 0:09:30]} h6 {[%emt 0:03:30]} 12. Nb5 {[%emt 0:02:30]} Be6 {[%emt 0:01:30]} 13. Qc2 {[%emt 0:01:30]} b6 {[%emt 0:01:30]} 14. Rfd1 {[%emt 0:10:30]} d5 {[%emt 0:03:30]} 15. b4 {[%emt 0:03:30]} axb4 {[%emt 0:37:30]} 16. axb4 {[%emt 0:00:30]} cxb4 {[%emt 0:00:30]} 17. Bxb4 {[%emt 0:00:00]} Nxb4 {[%emt 0:00:00]} 18. Rxb4 {[%emt 0:00:00]} Nc6 {[%emt 0:00:00]} 19. Ra4 {[%emt 0:00:30]} Na5 {[%emt 0:05:30]} 20. cxd5 {[%emt 0:19:30]} Bxd5 {[%emt 0:00:00]} 21. Rb4 {[%emt 0:00:00]} Qe7 {[%emt 0:10:00]} 22. Qb1 {[%emt 0:01:00]} Rfc8 {[%emt 0:04:30]} 23. d4 {[%emt 0:05:30]} Bf8 {[%emt 0:06:30]} 24. Rb2 {[%emt 0:02:30]} Nc4 {[%emt 0:00:30]} 25. Re2 {[%emt 0:01:30]} e4 {[%emt 0:05:23]} 26. Nd2 {[%emt 0:01:30]} f5 {[%emt 0:00:21]} 27. Nxc4 {[%emt 0:08:30]} Bxc4 {[%emt 0:00:07]} 28. Rb2 {[%emt 0:01:30]} Ra8 {[%emt 0:01:11]} 29. Bf1 {[%emt 0:00:30]} Bd5 {[%emt 0:01:03]} 30. Rc1 {[%emt 0:01:30]} Qd7 {[%emt 0:04:21]} 31. Rxc8 {[%emt 0:00:30]} Rxc8 {[%emt 0:00:05]} 32. Rc2 {[%emt 0:01:30]} Rxc2 {[%emt 0:02:48]} 33. Qxc2 {[%emt 0:00:30]} Qc6 {[%emt 0:00:30]} 34. Qxc6 {[%emt 0:00:30]} Bxc6 {[%emt 0:00:30]} 35. Bc4+ {[%emt 0:00:30]} Kg7 {[%emt 0:00:30]} 36. Kf1 {[%emt 0:00:30]} Bb4 {[%emt 0:00:30]} 37. Ke2 {[%emt 0:00:30]} Kf6 {[%emt 0:00:30]} 38. Nc7 {[%emt 0:00:30]} Ke7 {[%emt 0:00:30]} 39. Nd5+ {[%emt 0:00:30]} Bxd5 {[%emt 0:00:30]} 40. Bxd5 {[%emt 0:00:30]} Kf6 {[%emt 0:00:30]} 41. h3 {[%emt 0:00:30]} Kg5 {[%emt 0:00:30]} 42. Bc6 {[%emt 0:00:30]} Ba5 {[%emt 0:04:29]} 1/2-1/2

[Event "Turkish Club Cup 2019"]
[Site "Konya"]
[Date "2019.07.18"]
[Round "5"]
[White "Eraslan, Yagmur"]
[Black "Acar, Selen"]
[Result "1-0"]
[ECO "B52"]
[WhiteElo "1651"]
[BlackElo "1283"]
[Annotator "NA"]
[PlyCount "107"]
[EventDate "2019.07.16"]
[EventType "team-tourn"]
[EventCountry "TUR"]
[SourceTitle "playchess.com"]
[Source "ChessBase"]
[SourceQuality "1"]
[TimeControl "5400+30"]

1. e4 {[%emt 0:00:30]} c5 {[%emt 0:00:30]} 2. Nf3 {[%emt 0:00:30]} d6 {[%emt 0:00:30]} 3. Bb5+ {[%emt 0:00:00]} Bd7 {[%emt 0:00:00]} 4. Bxd7+ {[%emt 0:00:00]} Qxd7 {[%emt 0:00:00]} 5. c4 {[%emt 0:00:00]} Nc6 {[%emt 0:02:30]} 6. d4 {[%emt 0:01:00]} cxd4 {[%emt 0:00:30]} 7. Nxd4 {[%emt 0:00:30]} Nf6 {[%emt 0:01:30]} 8. Nc3 {[%emt 0:02:30]} g6 {[%emt 0:01:30]} 9. f3 {[%emt 0:03:30]} Bg7 {[%emt 0:03:30]} 10. Be3 {[%emt 0:01:30]} Qc8 {[%emt 0:07:30]} 11. b3 {[%emt 0:02:30]} Nd7 {[%emt 0:06:30]} 12. O-O {[%emt 0:05:30]} O-O {[%emt 0:02:30]} 13. Rc1 {[%emt 0:04:30]} Nc5 {[%emt 0:03:30]} 14. Nd5 {[%emt 0:03:30]} Qd8 {[%emt 0:16:30]} 15. Nb5 {[%emt 0:09:30]} a6 {[%emt 0:03:30]} 16. Nbc3 {[%emt 0:10:30]} e6 {[%emt 0:09:30]} 17. Nf4 {[%emt 0:03:30]} Be5 {[%emt 0:04:30]} 18. Nd3 {[%emt 0:06:30]} Nxd3 {[%emt 0:05:30]} 19. Qxd3 {[%emt 0:00:30]} Qe7 {[%emt 0:02:30]} 20. f4 {[%emt 0:08:30]} Bg7 {[%emt 0:01:30]} 21. Rfd1 {[%emt 0:03:30]} f5 {[%emt 0:12:12]} 22. Qxd6 {[%emt 0:04:30]} Bxc3 {[%emt 0:04:46]} 23. Qxe7 {[%emt 0:00:30]} Nxe7 {[%emt 0:00:38]} 24. Rxc3 {[%emt 0:00:00]} fxe4 {[%emt 0:01:20]} 25. Rd7 {[%emt 0:00:00]} Nf5 {[%emt 0:01:15]} 26. Rxb7 {[%emt 0:03:30]} Nxe3 {[%emt 0:01:29]} 27. Rxe3 {[%emt 0:00:30]} Rxf4 {[%emt 0:00:00]} 28. g3 {[%emt 0:00:30]} Rg4 {[%emt 0:02:39]} 29. Re7 {[%emt 0:02:30]} Rd8 {[%emt 0:00:58]} 30. Rxe6 {[%emt 0:02:30]} Rd1+ {[%emt 0:00:30]} 31. Kf2 {[%emt 0:00:00]} Rg5 {[%emt 0:03:18]} 32. R6xe4 {[%emt 0:01:00]} Rf5+ {[%emt 0:01:07]} 33. Rf4 {[%emt 0:00:00]} Rxf4+ {[%emt 0:01:22]} 34. gxf4 {[%emt 0:00:00]} Rd4 {[%emt 0:00:00]} 35. Kf3 {[%emt 0:01:30]} Rd2 {[%emt 0:00:00]} 36. Re2 {[%emt 0:00:30]} Rd3+ {[%emt 0:00:14]} 37. Ke4 {[%emt 0:00:00]} Rd7 {[%emt 0:00:24]} 38. c5 {[%emt 0:01:00]} Rb7 {[%emt 0:01:01]} 39. c6 {[%emt 0:01:30]} Re7+ {[%emt 0:01:13]} 40. Kd3 {[%emt 0:00:30]} Rc7 {[%emt 0:00:00]} 41. Rc2 {[%emt 0:00:00]} Kf7 {[%emt 0:00:05]} 42. b4 {[%emt 0:00:00]} Ke6 {[%emt 0:01:37]} 43. a4 {[%emt 0:00:30]} Kd6 {[%emt 0:00:31]} 44. b5 {[%emt 0:01:30]} axb5 {[%emt 0:00:30]} 45. axb5 {[%emt 0:00:00]} h6 {[%emt 0:00:00]} 46. Kc4 {[%emt 0:00:00]} Rf7 {[%emt 0:00:59]} 47. Rd2+ {[%emt 0:00:00]} Kc7 {[%emt 0:00:03]} 48. Rd7+ {[%emt 0:01:00]} Rxd7 {[%emt 0:00:02]} 49. cxd7 {[%emt 0:00:00]} Kxd7 {[%emt 0:00:30]} 50. Kd5 {[%emt 0:00:00]} Kc7 {[%emt 0:00:22]} 51. Ke6 {[%emt 0:00:00]} Kb6 {[%emt 0:00:37]} 52. Kf6 {[%emt 0:00:00]} g5 {[%emt 0:00:09]} 53. fxg5 {[%emt 0:00:30]} hxg5 {[%emt 0:00:00]} 54. Kxg5 {[%emt 0:00:00]} 1-0

[Event "Turkish Club Cup 2019"]
[Site "Konya"]
[Date "2019.07.18"]
[Round "5"]
[White "Acar, Ilhami"]
[Black "Ipek, Ekin"]
[Result "1-0"]
[ECO "B42"]
[WhiteElo "1636"]
[BlackElo "1706"]
[Annotator "NA"]
[PlyCount "51"]
[EventDate "2019.07.16"]
[EventType "team-tourn"]
[EventCountry "TUR"]
[SourceTitle "playchess.com"]
[Source "ChessBase"]
[SourceQuality "1"]
[TimeControl "5400+30"]

1. e4 {[%emt 0:00:30]} c5 {[%emt 0:00:30]} 2. Nf3 {[%emt 0:00:00]} e6 {[%emt 0:00:30]} 3. d4 {[%emt 0:00:00]} cxd4 {[%emt 0:00:00]} 4. Nxd4 {[%emt 0:00:30]} a6 {[%emt 0:00:00]} 5. c4 {[%emt 0:00:30]} Qc7 {[%emt 0:00:00]} 6. Bd3 {[%emt 0:00:30]} Nf6 {[%emt 0:00:00]} 7. O-O {[%emt 0:00:30]} d6 {[%emt 0:00:30]} 8. Nc3 {[%emt 0:00:30]} Nc6 {[%emt 0:01:30]} 9. Nxc6 {[%emt 0:01:30]} bxc6 {[%emt 0:00:30]} 10. b3 {[%emt 0:01:30]} Bb7 {[%emt 0:01:30]} 11. Qe2 {[%emt 0:04:30]} Be7 {[%emt 0:02:30]} 12. Bb2 {[%emt 0:00:30]} Nd7 {[%emt 0:03:30]} 13. f4 {[%emt 0:09:30]} Bf6 {[%emt 0:02:30]} 14. Kh1 {[%emt 0:00:00]} Rd8 {[%emt 0:03:30]} 15. Rad1 {[%emt 0:02:00]} Nb8 {[%emt 0:03:30]} 16. e5 {[%emt 0:02:30]} dxe5 {[%emt 0:06:30]} 17. Ne4 {[%emt 0:00:30]} Nd7 {[%emt 0:13:30]} 18. Nxf6+ {[%emt 0:05:30]} gxf6 {[%emt 0:04:30]} 19. f5 {[%emt 0:23:30]} Ke7 {[%emt 0:04:30]} 20. fxe6 {[%emt 0:02:30]} fxe6 {[%emt 0:00:30]} 21. c5 {[%emt 0:05:30]} Qa5 {[%emt 0:05:30]} 22. Bc4 {[%emt 0:01:30]} h5 {[%emt 0:14:30]} 23. Qd3 {[%emt 0:08:30]} Qxc5 {[%emt 0:01:30]} 24. b4 {[%emt 0:00:30]} Nb6 {[%emt 0:11:52]} 25. Qg6 {[%emt 0:04:30]} Rxd1 {[%emt 0:11:18]} 26. Qxf6+ {[%emt 0:00:30]} 1-0

[Event "Turkish Club Cup 2019"]
[Site "Konya"]
[Date "2019.07.18"]
[Round "5"]
[White "Tuncer, Orcun Ege"]
[Black "Sariali, Furkan Anil"]
[Result "1-0"]
[ECO "B84"]
[WhiteElo "1626"]
[BlackElo "1733"]
[Annotator "NA RC"]
[PlyCount "99"]
[EventDate "2019.07.16"]
[EventType "team-tourn"]
[EventCountry "TUR"]
[SourceTitle "playchess.com"]
[Source "ChessBase"]
[SourceQuality "1"]
[TimeControl "5400+30"]

1. e4 {[%emt 0:00:30]} c5 {[%emt 0:00:30]} 2. Nf3 {[%emt 0:00:00]} d6 {[%emt 0:00:30]} 3. d4 {[%emt 0:00:00]} cxd4 {[%emt 0:00:30]} 4. Nxd4 {[%emt 0:00:00]} Nf6 {[%emt 0:00:00]} 5. Nc3 {[%emt 0:00:00]} a6 {[%emt 0:00:00]} 6. Be2 {[%emt 0:01:30]} e6 {[%emt 0:00:30]} 7. Be3 {[%emt 0:00:30]} Be7 {[%emt 0:00:00]} 8. O-O {[%emt 0:01:30]} O-O {[%emt 0:03:00]} 9. a4 {[%emt 0:00:30]} Qc7 {[%emt 0:02:30]} 10. Bf3 {[%emt 0:02:30]} Nbd7 {[%emt 0:05:30]} 11. a5 {[%emt 0:05:30]} Ne5 {[%emt 0:06:30]} 12. Be2 {[%emt 0:02:30]} Bd7 {[%emt 0:02:30]} 13. f4 {[%emt 0:05:30]} Nc4 {[%emt 0:02:30]} 14. Bxc4 {[%emt 0:00:00]} Qxc4 {[%emt 0:00:30]} 15. h3 {[%emt 0:00:00]} Bc6 {[%emt 0:09:30]} 16. Qd3 {[%emt 0:00:30]} Qxd3 {[%emt 0:02:30]} 17. cxd3 {[%emt 0:02:30]} d5 {[%emt 0:01:30]} 18. e5 {[%emt 0:04:30]} Nd7 {[%emt 0:00:00]} 19. Nxc6 {[%emt 0:01:30]} bxc6 {[%emt 0:00:00]} 20. Na4 {[%emt 0:00:30]} c5 {[%emt 0:04:30]} 21. Rfc1 {[%emt 0:00:00]} d4 {[%emt 0:10:30]} 22. Bd2 {[%emt 0:02:00]} Rab8 {[%emt 0:03:30]} 23. b4 {[%emt 0:10:30]} Rfc8 {[%emt 0:06:30]} 24. bxc5 {[%emt 0:02:30]} Bxc5 {[%emt 0:00:30]} 25. Rc4 {[%emt 0:04:30]} Ba7 {[%emt 0:08:30]} 26. Rac1 {[%emt 0:00:30]} Rxc4 {[%emt 0:00:30]} 27. Rxc4 {[%emt 0:00:00]} Rb7 {[%emt 0:00:30]} 28. Rc8+ {[%emt 0:05:00]} Nf8 {[%emt 0:00:30]} 29. Rc6 {[%emt 0:07:30]} f6 {[%emt 0:10:30]} 30. exf6 {[%emt 0:10:30]} gxf6 {[%emt 0:00:00]} 31. Rxa6 {[%emt 0:00:00]} Kf7 {[%emt 0:00:00]} 32. Nb6 {[%emt 0:00:00]} Nd7 {[%emt 0:01:34]} 33. Nxd7 {[%emt 0:08:30]} Rxd7 {[%emt 0:00:26]} 34. Rc6 {[%emt 0:01:30]} Rb7 {[%emt 0:04:26]} 35. Kf2 {[%emt 0:08:00]} Bb8 {[%emt 0:01:45]} 36. Kf3 {[%emt 0:08:00]} Ba7 {[%emt 0:01:04]} 37. a6 {[%emt 0:03:16]} Rd7 {[%emt 0:00:18]} 38. Bb4 {[%emt 0:02:00]} h6 {[%emt 0:00:43]} 39. g4 {[%emt 0:00:36]} Bb8 {[%emt 0:01:23]} 40. Bc5 {[%emt 0:01:35]} e5 {[%emt 0:02:11]} 41. fxe5 {[%emt 0:01:29]} fxe5 {[%emt 0:00:01]} 42. Rxh6 {[%emt 0:00:00]} Kg7 {[%emt 0:00:19]} 43. g5 {[%emt 0:02:03]} Rc7 {[%emt 0:01:57]} 44. Bf8+ {[%emt 0:01:16]} Kg8 {[%emt 0:01:57]} 45. Bd6 {[%emt 0:00:23]} Rc8 {[%emt 0:00:50]} 46. Bxb8 {[%emt 0:00:24]} Rxb8 {[%emt 0:00:30]} 47. Ke4 {[%emt 0:00:30]} Re8 {[%emt 0:00:30]} 48. Rb6 {[%emt 0:00:30]} Kg7 {[%emt 0:00:30]} 49. h4 {[%emt 0:00:30]} Kf7 {[%emt 0:00:30]} 50. Kf5 {[%emt 0:00:19]} 1-0

[Event "Turkish Club Cup 2019"]
[Site "Konya"]
[Date "2019.07.18"]
[Round "5"]
[White "Sural, Ceren"]
[Black "Yorgun, Yaren Naz"]
[Result "0-1"]
[ECO "C00"]
[WhiteElo "1622"]
[BlackElo "1819"]
[Annotator "NA RC"]
[PlyCount "106"]
[EventDate "2019.07.16"]
[EventType "team-tourn"]
[EventCountry "TUR"]
[SourceTitle "playchess.com"]
[Source "ChessBase"]
[SourceQuality "1"]
[TimeControl "5400+30"]

1. e4 {[%emt 0:00:30]} e6 {[%emt 0:00:30]} 2. d3 {[%emt 0:00:30]} d5 {[%emt 0:00:30]} 3. Nd2 {[%emt 0:00:00]} Nf6 {[%emt 0:00:30]} 4. Ngf3 {[%emt 0:00:00]} c5 {[%emt 0:00:00]} 5. g3 {[%emt 0:00:30]} Nc6 {[%emt 0:00:00]} 6. Bg2 {[%emt 0:01:30]} Be7 {[%emt 0:00:30]} 7. O-O {[%emt 0:00:00]} O-O {[%emt 0:00:30]} 8. e5 {[%emt 0:06:00]} Nd7 {[%emt 0:00:30]} 9. Re1 {[%emt 0:00:00]} Qc7 {[%emt 0:01:30]} 10. Qe2 {[%emt 0:00:00]} b5 {[%emt 0:00:00]} 11. Nf1 {[%emt 0:00:30]} a5 {[%emt 0:00:00]} 12. h4 {[%emt 0:02:30]} b4 {[%emt 0:07:30]} 13. h5 {[%emt 0:05:30]} Ba6 {[%emt 0:06:30]} 14. c3 {[%emt 0:06:30]} a4 {[%emt 0:08:30]} 15. N1h2 {[%emt 0:13:30]} a3 {[%emt 0:02:30]} 16. Ng4 {[%emt 0:05:30]} axb2 {[%emt 0:09:30]} 17. Bxb2 {[%emt 0:00:30]} bxc3 {[%emt 0:06:30]} 18. Bxc3 {[%emt 0:00:30]} c4 {[%emt 0:01:30]} 19. dxc4 {[%emt 0:08:30]} Bxc4 {[%emt 0:00:30]} 20. Qd2 {[%emt 0:01:30]} Qd8 {[%emt 0:06:30]} 21. Kh2 {[%emt 0:07:30]} Nc5 {[%emt 0:03:30]} 22. Nd4 {[%emt 0:03:30]} Nxd4 {[%emt 0:13:30]} 23. Bxd4 {[%emt 0:01:30]} Na6 {[%emt 0:08:30]} 24. Re3 {[%emt 0:08:30]} Nb4 {[%emt 0:05:06]} 25. a3 {[%emt 0:07:30]} Nc6 {[%emt 0:01:35]} 26. Bb2 {[%emt 0:00:30]} Qa5 {[%emt 0:01:40]} 27. Qc1 {[%emt 0:01:38]} Qb6 {[%emt 0:03:46]} 28. Rf3 {[%emt 0:02:44]} Kh8 {[%emt 0:02:10]} 29. Qd2 {[%emt 0:08:56]} Na5 {[%emt 0:01:49]} 30. Rh1 {[%emt 0:02:29]} Nb3 {[%emt 0:00:18]} 31. Qf4 {[%emt 0:00:00]} Be2 {[%emt 0:02:10]} 32. Re3 {[%emt 0:01:56]} Bxg4 {[%emt 0:02:04]} 33. Qxg4 {[%emt 0:00:02]} h6 {[%emt 0:00:21]} 34. Rb1 {[%emt 0:01:22]} Nd2 {[%emt 0:01:09]} 35. Rd1 {[%emt 0:00:19]} Nc4 {[%emt 0:01:00]} 36. Bd4 {[%emt 0:04:21]} Nxe3 {[%emt 0:00:07]} 37. Bxe3 {[%emt 0:00:38]} Qb2 {[%emt 0:02:47]} 38. Bd4 {[%emt 0:01:09]} Qxa3 {[%emt 0:00:25]} 39. Bf1 {[%emt 0:00:05]} Bc5 {[%emt 0:00:29]} 40. Bxc5 {[%emt 0:00:20]} Qxc5 {[%emt 0:00:30]} 41. Qd4 {[%emt 0:00:02]} Qxd4 {[%emt 0:00:35]} 42. Rxd4 {[%emt 0:00:30]} Ra2 {[%emt 0:00:30]} 43. Kg2 {[%emt 0:00:30]} Rb8 {[%emt 0:00:31]} 44. Rf4 {[%emt 0:00:27]} Kg8 {[%emt 0:00:36]} 45. Bd3 {[%emt 0:00:47]} Ra3 {[%emt 0:00:31]} 46. Rd4 {[%emt 0:00:01]} Rab3 {[%emt 0:00:19]} 47. Kf3 {[%emt 0:01:27]} R8b4 {[%emt 0:00:07]} 48. Ke3 {[%emt 0:00:28]} Rxd4 {[%emt 0:00:30]} 49. Kxd4 {[%emt 0:00:00]} Kf8 {[%emt 0:00:24]} 50. f3 {[%emt 0:00:00]} Ke7 {[%emt 0:00:00]} 51. g4 {[%emt 0:00:50]} f6 {[%emt 0:00:30]} 52. f4 {[%emt 0:00:01]} fxe5+ {[%emt 0:00:05]} 53. fxe5 {[%emt 0:00:32]} Rb4+ {[%emt 0:00:01]} 0-1

[Event "Turkish Club Cup 2019"]
[Site "Konya"]
[Date "2019.07.18"]
[Round "5"]
[White "Sarikas, Ertan"]
[Black "Efendioglu, Ahmet"]
[Result "1-0"]
[ECO "A08"]
[WhiteElo "1612"]
[BlackElo "1511"]
[Annotator "NA"]
[PlyCount "77"]
[EventDate "2019.07.16"]
[EventType "team-tourn"]
[EventCountry "TUR"]
[SourceTitle "playchess.com"]
[Source "ChessBase"]
[SourceQuality "1"]
[TimeControl "5400+30"]

1. e4 {[%emt 0:00:30]} e6 {[%emt 0:00:30]} 2. Qe2 {[%emt 0:00:00]} c5 {[%emt 0:00:30]} 3. Nf3 {[%emt 0:00:00]} Nc6 {[%emt 0:01:30]} 4. g3 {[%emt 0:00:30]} Nge7 {[%emt 0:02:30]} 5. Bg2 {[%emt 0:00:30]} g6 {[%emt 0:00:30]} 6. O-O {[%emt 0:00:30]} Bg7 {[%emt 0:00:30]} 7. d3 {[%emt 0:02:30]} O-O {[%emt 0:01:30]} 8. c3 {[%emt 0:00:30]} d5 {[%emt 0:01:30]} 9. e5 {[%emt 0:00:30]} h6 {[%emt 0:02:30]} 10. h4 {[%emt 0:00:30]} Kh7 {[%emt 0:13:30]} 11. Re1 {[%emt 0:00:30]} b6 {[%emt 0:03:30]} 12. Bf4 {[%emt 0:00:30]} Ba6 {[%emt 0:04:30]} 13. Nbd2 {[%emt 0:01:30]} Qd7 {[%emt 0:04:30]} 14. Nf1 {[%emt 0:11:30]} Rae8 {[%emt 0:03:30]} 15. N1h2 {[%emt 0:01:30]} b5 {[%emt 0:03:30]} 16. Ng4 {[%emt 0:03:30]} Ng8 {[%emt 0:01:30]} 17. Qd2 {[%emt 0:08:30]} b4 {[%emt 0:17:30]} 18. Bxh6 {[%emt 0:02:30]} Nxh6 {[%emt 0:03:30]} 19. Qxh6+ {[%emt 0:00:30]} Bxh6 {[%emt 0:01:30]} 20. Nf6+ {[%emt 0:00:00]} Kg7 {[%emt 0:01:30]} 21. Nxd7 {[%emt 0:00:00]} Rh8 {[%emt 0:00:30]} 22. Nxc5 {[%emt 0:00:30]} Bc8 {[%emt 0:02:30]} 23. d4 {[%emt 0:00:30]} Re7 {[%emt 0:05:30]} 24. Bf1 {[%emt 0:00:30]} Bb7 {[%emt 0:03:30]} 25. Bb5 {[%emt 0:00:30]} Rc8 {[%emt 0:03:22]} 26. Nxb7 {[%emt 0:00:30]} Rxb7 {[%emt 0:00:37]} 27. Ba6 {[%emt 0:00:30]} Rbc7 {[%emt 0:00:29]} 28. Bxc8 {[%emt 0:00:00]} Rxc8 {[%emt 0:00:24]} 29. Ng5 {[%emt 0:03:00]} Bxg5 {[%emt 0:01:37]} 30. hxg5 {[%emt 0:00:30]} a5 {[%emt 0:04:35]} 31. Red1 {[%emt 0:02:30]} Na7 {[%emt 0:00:53]} 32. cxb4 {[%emt 0:00:00]} axb4 {[%emt 0:02:22]} 33. Rac1 {[%emt 0:00:00]} Rxc1 {[%emt 0:00:49]} 34. Rxc1 {[%emt 0:00:00]} Nb5 {[%emt 0:00:09]} 35. Rd1 {[%emt 0:00:00]} Kf8 {[%emt 0:00:47]} 36. Kf1 {[%emt 0:00:30]} Ke7 {[%emt 0:00:22]} 37. Ke2 {[%emt 0:00:00]} Kd7 {[%emt 0:00:37]} 38. Kd3 {[%emt 0:00:00]} Nc7 {[%emt 0:00:49]} 39. a4 {[%emt 0:00:30]} 1-0